[Event "Late-Titled-Tuesday-Blitz-May-07-2024"]
[Site "Chess.com"]
[Date "2024.05.07"]
[Round "5"]
[White "Axf7"]
[Black "ImportedItalianMaple"]
[Result "0-1"]
[WhiteElo "2044"]
[BlackElo "2533"]
[TimeControl "180+1"]
[EndTime "14:54:50 PDT"]
[Termination "ImportedItalianMaple won on time"]

1. e4 {[%clk 0:02:51.4]} 1... g6 {[%clk 0:03:00.1]} 2. d4 {[%clk 0:02:51.3]}
2... Bg7 {[%clk 0:03:00.7]} 3. Nc3 {[%clk 0:02:51.5]} 3... d5 {[%clk 0:03:01.1]}
4. e5 {[%clk 0:02:50.9]} 4... f6 {[%clk 0:03:00.6]} 5. f4 {[%clk 0:02:50.9]}
5... Nh6 {[%clk 0:02:59.3]} 6. Nf3 {[%clk 0:02:48.8]} 6... Bg4 {[%clk
0:02:59.4]} 7. Be3 {[%clk 0:02:48.9]} 7... O-O {[%clk 0:02:58.5]} 8. Be2 {[%clk
0:02:46.8]} 8... c5 {[%clk 0:02:55.9]} 9. dxc5 {[%clk 0:02:42.3]} 9... e6 {[%clk
0:02:55.5]} 10. exf6 {[%clk 0:02:37.6]} 10... Bxf6 {[%clk 0:02:48.6]} 11. O-O
{[%clk 0:02:36.3]} 11... Nf5 {[%clk 0:02:46.9]} 12. Bf2 {[%clk 0:02:35.3]} 12...
Nc6 {[%clk 0:02:44.7]} 13. h3 {[%clk 0:02:26.8]} 13... Bxf3 {[%clk 0:02:44.1]}
14. Bxf3 {[%clk 0:02:27.1]} 14... Qa5 {[%clk 0:02:29.5]} 15. Rb1 {[%clk
0:02:23.1]} 15... Rad8 {[%clk 0:02:25.7]} 16. a3 {[%clk 0:02:10.3]} 16... Bxc3
{[%clk 0:02:19.1]} 17. bxc3 {[%clk 0:02:09.9]} 17... Rf7 {[%clk 0:02:19.2]} 18.
Qd2 {[%clk 0:01:55.2]} 18... Rdd7 {[%clk 0:02:10.3]} 19. g4 {[%clk 0:01:54]}
19... Nfe7 {[%clk 0:02:01.8]} 20. Bd4 {[%clk 0:01:50.5]} 20... Qc7 {[%clk
0:01:44.9]} 21. Bg2 {[%clk 0:01:49.1]} 21... Na5 {[%clk 0:01:31]} 22. Qe3 {[%clk
0:01:40]} 22... Nc4 {[%clk 0:01:28.2]} 23. Qxe6 {[%clk 0:01:37.6]} 23... Nd2
{[%clk 0:01:28.7]} 24. Rbe1 {[%clk 0:01:22.7]} 24... Nxf1 {[%clk 0:01:27]} 25.
Rxf1 {[%clk 0:01:23.1]} 25... Qc6 {[%clk 0:01:18.9]} 26. Qe5 {[%clk 0:01:08.5]}
26... Kf8 {[%clk 0:01:05.3]} 27. Re1 {[%clk 0:00:52.6]} 27... Qc7 {[%clk
0:00:53.3]} 28. Qh8+ {[%clk 0:00:49.2]} 28... Ng8 {[%clk 0:00:53.2]} 0-1

[Event "Late-Titled-Tuesday-Blitz-May-07-2024"]
[Site "Chess.com"]
[Date "2024.05.07"]
[Round "5"]
[White "maracayo"]
[Black "yuriydovzik"]
[Result "1-0"]
[WhiteElo "2370"]
[BlackElo "2140"]
[TimeControl "180+1"]
[EndTime "14:54:54 PDT"]
[Termination "maracayo won on time"]

1. e4 {[%clk 0:02:59.4]} 1... c6 {[%clk 0:02:58.6]} 2. Nf3 {[%clk 0:02:58.1]}
2... g6 {[%clk 0:02:52.7]} 3. d4 {[%clk 0:02:54.7]} 3... Na6 {[%clk 0:02:51.6]}
4. c3 {[%clk 0:02:48.4]} 4... Nc7 {[%clk 0:02:50.4]} 5. g3 {[%clk 0:02:47.4]}
5... d5 {[%clk 0:02:49]} 6. Nbd2 {[%clk 0:02:45.9]} 6... h5 {[%clk 0:02:43.3]}
7. Bg2 {[%clk 0:02:38.6]} 7... Bh6 {[%clk 0:02:36]} 8. Ne5 {[%clk 0:02:30.2]}
8... Nf6 {[%clk 0:02:22.8]} 9. h3 {[%clk 0:02:18.3]} 9... Nd7 {[%clk 0:02:08.7]}
10. O-O {[%clk 0:01:56.3]} 10... Nxe5 {[%clk 0:01:57.1]} 11. dxe5 {[%clk
0:01:57.2]} 11... e6 {[%clk 0:01:41.8]} 12. Qe2 {[%clk 0:01:50.4]} 12... b6
{[%clk 0:01:35.2]} 13. exd5 {[%clk 0:01:33.4]} 13... Ba6 {[%clk 0:01:21.3]} 14.
c4 {[%clk 0:01:32.8]} 14... cxd5 {[%clk 0:01:18.8]} 15. b3 {[%clk 0:01:27.8]}
15... O-O {[%clk 0:01:04.7]} 16. Ne4 {[%clk 0:01:17.8]} 16... Bxc1 {[%clk
0:00:40.4]} 17. Nf6+ {[%clk 0:01:16.7]} 17... Kg7 {[%clk 0:00:38.5]} 18. Raxc1
{[%clk 0:01:15.8]} 18... dxc4 {[%clk 0:00:29.9]} 19. Rfd1 {[%clk 0:01:07.2]}
19... cxb3 {[%clk 0:00:18.2]} 20. Qe3 {[%clk 0:00:55]} 20... Nd5 {[%clk
0:00:14.9]} 21. Bxd5 {[%clk 0:00:47.2]} 21... exd5 {[%clk 0:00:12]} 22. Rxd5
{[%clk 0:00:44]} 22... b2 {[%clk 0:00:08.3]} 23. Rxd8 {[%clk 0:00:40.5]} 23...
bxc1=Q+ {[%clk 0:00:06.6]} 24. Qxc1 {[%clk 0:00:41.4]} 24... Raxd8 {[%clk
0:00:03.5]} 25. Qg5 {[%clk 0:00:40.7]} 1-0

[Event "Late-Titled-Tuesday-Blitz-May-07-2024"]
[Site "Chess.com"]
[Date "2024.05.07"]
[Round "5"]
[White "CombativeWombat"]
[Black "gxbg2000"]
[Result "0-1"]
[WhiteElo "2335"]
[BlackElo "2053"]
[TimeControl "180+1"]
[EndTime "14:55:01 PDT"]
[Termination "gxbg2000 won on time"]

1. e4 {[%clk 0:03:00.9]} 1... e5 {[%clk 0:02:54.7]} 2. Bc4 {[%clk 0:03:00.3]}
2... c6 {[%clk 0:02:53.6]} 3. Nf3 {[%clk 0:02:57]} 3... d6 {[%clk 0:02:46.2]} 4.
d4 {[%clk 0:02:55.4]} 4... exd4 {[%clk 0:02:46.1]} 5. Qxd4 {[%clk 0:02:47.6]}
5... Qf6 {[%clk 0:02:45]} 6. Nc3 {[%clk 0:02:39.5]} 6... Qxd4 {[%clk 0:02:43.2]}
7. Nxd4 {[%clk 0:02:39.1]} 7... Nf6 {[%clk 0:02:42.3]} 8. Bf4 {[%clk 0:02:34.2]}
8... b5 {[%clk 0:02:38.5]} 9. Bd3 {[%clk 0:02:19.3]} 9... Bb7 {[%clk 0:02:31]}
10. O-O-O {[%clk 0:02:04.7]} 10... Nbd7 {[%clk 0:02:27.8]} 11. Nf5 {[%clk
0:01:56.8]} 11... Ne5 {[%clk 0:02:24]} 12. Bg3 {[%clk 0:01:51.3]} 12... g6
{[%clk 0:02:23]} 13. Ne3 {[%clk 0:01:47.7]} 13... h5 {[%clk 0:02:20.9]} 14. Bh4
{[%clk 0:01:33.2]} 14... Bg7 {[%clk 0:02:12.2]} 15. Be2 {[%clk 0:01:28.4]} 15...
Rd8 {[%clk 0:02:02.5]} 16. f4 {[%clk 0:01:26.7]} 16... Neg4 {[%clk 0:02:01]} 17.
Bxg4 {[%clk 0:00:56]} 17... hxg4 {[%clk 0:01:59.5]} 18. Bxf6 {[%clk 0:00:51.9]}
18... Bxf6 {[%clk 0:01:59]} 19. Nxg4 {[%clk 0:00:52.2]} 19... Bxc3 {[%clk
0:01:57.4]} 20. bxc3 {[%clk 0:00:53.1]} 20... Ke7 {[%clk 0:01:52.7]} 21. Rhe1
{[%clk 0:00:26]} 21... a5 {[%clk 0:01:32.1]} 22. e5 {[%clk 0:00:21.7]} 22... d5
{[%clk 0:01:31.3]} 23. h3 {[%clk 0:00:18.3]} 23... Bc8 {[%clk 0:01:28.7]} 24.
Nf2 {[%clk 0:00:16.7]} 24... Rh4 {[%clk 0:01:22.3]} 25. Nd3 {[%clk 0:00:16.1]}
25... Rg8 {[%clk 0:01:08.3]} 26. Re3 {[%clk 0:00:14]} 26... g5 {[%clk 0:01:08]}
27. g3 {[%clk 0:00:10]} 27... Rxh3 {[%clk 0:01:07.3]} 28. Rde1 {[%clk
0:00:06.5]} 28... gxf4 {[%clk 0:01:06.8]} 29. gxf4 {[%clk 0:00:07.4]} 29... Rxe3
{[%clk 0:01:04]} 30. Rxe3 {[%clk 0:00:08.3]} 30... Bf5 {[%clk 0:01:02.9]} 31.
Kb2 {[%clk 0:00:03.7]} 31... Rg2 {[%clk 0:01:01.8]} 32. a3 {[%clk 0:00:02.2]}
32... a4 {[%clk 0:01:00.2]} 33. Nb4 {[%clk 0:00:01.5]} 33... Kd7 {[%clk
0:00:57.5]} 34. Nd3 {[%clk 0:00:01]} 34... Kc7 {[%clk 0:00:56.5]} 35. Re1 {[%clk
0:00:00.5]} 35... Bxd3 {[%clk 0:00:55.5]} 0-1

[Event "Late-Titled-Tuesday-Blitz-May-07-2024"]
[Site "Chess.com"]
[Date "2024.05.07"]
[Round "5"]
[White "Olkaa"]
[Black "Licancabur"]
[Result "1-0"]
[WhiteElo "2629"]
[BlackElo "2488"]
[TimeControl "180+1"]
[EndTime "14:55:04 PDT"]
[Termination "Olkaa won on time"]

1. e4 {[%clk 0:03:00.9]} 1... Nf6 {[%clk 0:02:59.7]} 2. e5 {[%clk 0:03:00.9]}
2... Nd5 {[%clk 0:03:00.2]} 3. c4 {[%clk 0:03:01.4]} 3... Nb6 {[%clk 0:02:59.9]}
4. d4 {[%clk 0:03:02]} 4... d6 {[%clk 0:03:00.6]} 5. exd6 {[%clk 0:03:02.9]}
5... cxd6 {[%clk 0:03:00.6]} 6. Nc3 {[%clk 0:03:02.5]} 6... g6 {[%clk
0:03:00.6]} 7. Be3 {[%clk 0:03:03.1]} 7... Bg7 {[%clk 0:03:01.1]} 8. Rc1 {[%clk
0:03:03.7]} 8... O-O {[%clk 0:03:00]} 9. b3 {[%clk 0:03:04.2]} 9... e5 {[%clk
0:02:59]} 10. dxe5 {[%clk 0:03:01.4]} 10... dxe5 {[%clk 0:02:59]} 11. Qxd8
{[%clk 0:03:01.5]} 11... Rxd8 {[%clk 0:02:58.6]} 12. c5 {[%clk 0:03:02]} 12...
N6d7 {[%clk 0:02:59]} 13. Bc4 {[%clk 0:03:01.1]} 13... Nc6 {[%clk 0:02:57.3]}
14. Nf3 {[%clk 0:02:53.4]} 14... h6 {[%clk 0:02:55.6]} 15. O-O {[%clk
0:02:33.7]} 15... Na5 {[%clk 0:02:51.6]} 16. Be2 {[%clk 0:02:18.4]} 16... Nf8
{[%clk 0:02:39.6]} 17. Rfd1 {[%clk 0:02:10.2]} 17... Bf5 {[%clk 0:02:24.7]} 18.
Nb5 {[%clk 0:02:05.8]} 18... Nc6 {[%clk 0:01:24.6]} 19. Nd6 {[%clk 0:02:03.1]}
19... Rd7 {[%clk 0:01:17]} 20. Bb5 {[%clk 0:01:34.5]} 20... Rad8 {[%clk
0:01:07.2]} 21. Re1 {[%clk 0:01:33.9]} 21... a6 {[%clk 0:00:53.7]} 22. Ba4
{[%clk 0:01:32.3]} 22... Be6 {[%clk 0:00:25.7]} 23. Nxb7 {[%clk 0:01:30.2]}
23... Rxb7 {[%clk 0:00:25.7]} 24. Bxc6 {[%clk 0:01:30]} 24... Rc7 {[%clk
0:00:26.2]} 25. Ba4 {[%clk 0:01:25.1]} 25... f5 {[%clk 0:00:26.3]} 26. c6 {[%clk
0:01:25.2]} 26... e4 {[%clk 0:00:25]} 27. Bb6 {[%clk 0:01:17.4]} 27... Rdc8
{[%clk 0:00:18]} 28. Nd4 {[%clk 0:01:16.2]} 28... Bxd4 {[%clk 0:00:16.9]} 29.
Bxd4 {[%clk 0:01:15.7]} 29... Bd5 {[%clk 0:00:15.3]} 30. Bb6 {[%clk 0:01:14.7]}
30... Re7 {[%clk 0:00:15.6]} 31. Red1 {[%clk 0:01:13]} 31... Bf7 {[%clk
0:00:13.4]} 32. c7 {[%clk 0:01:05]} 32... Ne6 {[%clk 0:00:13.3]} 33. Rd8+ {[%clk
0:01:02.8]} 33... Nxd8 {[%clk 0:00:08.5]} 34. cxd8=Q+ {[%clk 0:01:02.2]} 34...
Rxd8 {[%clk 0:00:08.2]} 35. Bxd8 {[%clk 0:01:03.1]} 35... Re5 {[%clk 0:00:07.5]}
36. Bf6 {[%clk 0:01:02.3]} 1-0

[Event "Late-Titled-Tuesday-Blitz-May-07-2024"]
[Site "Chess.com"]
[Date "2024.05.07"]
[Round "5"]
[White "PapaieDudu"]
[Black "JG-17"]
[Result "0-1"]
[WhiteElo "2356"]
[BlackElo "2560"]
[TimeControl "180+1"]
[EndTime "14:55:10 PDT"]
[Termination "JG-17 won by resignation"]

1. Nf3 {[%clk 0:03:00.9]} 1... c5 {[%clk 0:02:05.8]} 2. e4 {[%clk 0:02:59]} 2...
d6 {[%clk 0:02:05.9]} 3. d4 {[%clk 0:02:59.2]} 3... cxd4 {[%clk 0:02:06.8]} 4.
Nxd4 {[%clk 0:03:00.1]} 4... Nf6 {[%clk 0:02:07.3]} 5. Nc3 {[%clk 0:03:00.7]}
5... g6 {[%clk 0:02:08]} 6. f3 {[%clk 0:03:00.6]} 6... Nc6 {[%clk 0:02:08.2]} 7.
Be3 {[%clk 0:03:01.1]} 7... h5 {[%clk 0:02:07.1]} 8. Qd2 {[%clk 0:03:01.6]} 8...
Nxd4 {[%clk 0:02:07.5]} 9. Bxd4 {[%clk 0:03:01.6]} 9... Bh6 {[%clk 0:02:08.2]}
10. f4 {[%clk 0:02:57.8]} 10... e5 {[%clk 0:02:06.1]} 11. Be3 {[%clk 0:02:57.3]}
11... Ng4 {[%clk 0:02:05.2]} 12. g3 {[%clk 0:02:50.1]} 12... Nxe3 {[%clk
0:01:59.1]} 13. Qxe3 {[%clk 0:02:49.9]} 13... exf4 {[%clk 0:01:59.7]} 14. gxf4
{[%clk 0:02:50.4]} 14... Qh4+ {[%clk 0:01:59.9]} 15. Qg3 {[%clk 0:02:42.4]}
15... Qxf4 {[%clk 0:01:58.1]} 16. Bb5+ {[%clk 0:02:42.3]} 16... Kf8 {[%clk
0:01:52.4]} 17. Rd1 {[%clk 0:02:17]} 17... Bg4 {[%clk 0:01:46.4]} 18. Rd3 {[%clk
0:01:34.3]} 18... Kg7 {[%clk 0:01:37.2]} 19. Rf1 {[%clk 0:01:26.9]} 19... Qc1+
{[%clk 0:01:37.1]} 20. Nd1 {[%clk 0:01:23.4]} 20... Qxc2 {[%clk 0:01:30.9]} 21.
Rf2 {[%clk 0:00:53]} 21... Qc5 {[%clk 0:01:19.7]} 22. Rd5 {[%clk 0:00:42.8]}
22... Qc1 {[%clk 0:01:16.4]} 23. Rd3 {[%clk 0:00:41]} 23... Rae8 {[%clk
0:00:57.4]} 24. Bxe8 {[%clk 0:00:25]} 24... Rxe8 {[%clk 0:00:58.3]} 25. Qg2
{[%clk 0:00:20.2]} 25... d5 {[%clk 0:00:34.6]} 26. Rc2 {[%clk 0:00:20.3]} 26...
Rxe4+ {[%clk 0:00:27.8]} 27. Qxe4 {[%clk 0:00:20.2]} 27... dxe4 {[%clk
0:00:28.7]} 28. Rxc1 {[%clk 0:00:16.8]} 28... exd3 {[%clk 0:00:29.1]} 29. Rc7
{[%clk 0:00:16.4]} 29... d2+ {[%clk 0:00:28.6]} 30. Kf2 {[%clk 0:00:14.4]} 30...
Bxd1 {[%clk 0:00:29.1]} 0-1

[Event "Late-Titled-Tuesday-Blitz-May-07-2024"]
[Site "Chess.com"]
[Date "2024.05.07"]
[Round "5"]
[White "GMKrikor"]
[Black "manmanlai1"]
[Result "1-0"]
[WhiteElo "2835"]
[BlackElo "2581"]
[TimeControl "180+1"]
[EndTime "14:55:11 PDT"]
[Termination "GMKrikor won by resignation"]

1. Nf3 {[%clk 0:03:00.9]} 1... e6 {[%clk 0:02:57.8]} 2. c4 {[%clk 0:03:00.8]}
2... f5 {[%clk 0:02:57.6]} 3. g3 {[%clk 0:02:49.5]} 3... Nf6 {[%clk 0:02:57.4]}
4. Bg2 {[%clk 0:02:49.8]} 4... d5 {[%clk 0:02:57.5]} 5. O-O {[%clk 0:02:45.8]}
5... Bd6 {[%clk 0:02:52.8]} 6. d3 {[%clk 0:02:44.8]} 6... c6 {[%clk 0:02:52.5]}
7. Nc3 {[%clk 0:02:44.6]} 7... e5 {[%clk 0:02:50.5]} 8. cxd5 {[%clk 0:02:11.9]}
8... cxd5 {[%clk 0:02:51.4]} 9. Bg5 {[%clk 0:02:12.3]} 9... d4 {[%clk
0:02:39.6]} 10. Nb5 {[%clk 0:02:00.3]} 10... Nc6 {[%clk 0:02:39.1]} 11. Nxd6+
{[%clk 0:01:56.6]} 11... Qxd6 {[%clk 0:02:40]} 12. Nd2 {[%clk 0:01:55.8]} 12...
Be6 {[%clk 0:02:38.4]} 13. Qa4 {[%clk 0:01:55.4]} 13... O-O {[%clk 0:02:36.9]}
14. Rfc1 {[%clk 0:01:52.4]} 14... Rfc8 {[%clk 0:02:32.3]} 15. Nc4 {[%clk
0:01:46.5]} 15... Bxc4 {[%clk 0:02:22.2]} 16. Rxc4 {[%clk 0:01:29.5]} 16... Nd7
{[%clk 0:02:20.1]} 17. Qb5 {[%clk 0:01:07.7]} 17... Rc7 {[%clk 0:01:26.2]} 18.
Rac1 {[%clk 0:01:04.3]} 18... Rac8 {[%clk 0:01:25.4]} 19. Qd5+ {[%clk
0:01:01.7]} 19... Qxd5 {[%clk 0:01:24.4]} 20. Bxd5+ {[%clk 0:01:02.6]} 20... Kh8
{[%clk 0:01:23]} 21. Be6 {[%clk 0:00:52.7]} 21... Rf8 {[%clk 0:01:10.1]} 22. b4
{[%clk 0:00:47.3]} 22... a6 {[%clk 0:01:08.8]} 23. R4c2 {[%clk 0:00:27.9]} 23...
Nb6 {[%clk 0:01:05.5]} 24. Bb3 {[%clk 0:00:25.7]} 24... Rd7 {[%clk 0:00:57.3]}
25. Bd2 {[%clk 0:00:25.8]} 25... Nd5 {[%clk 0:00:53.9]} 26. a3 {[%clk
0:00:26.1]} 26... h6 {[%clk 0:00:50.5]} 27. Rc5 {[%clk 0:00:25.7]} 27... Rfd8
{[%clk 0:00:47.8]} 28. Kg2 {[%clk 0:00:23.8]} 28... Kh7 {[%clk 0:00:44]} 29. h4
{[%clk 0:00:23.8]} 29... g6 {[%clk 0:00:44]} 30. b5 {[%clk 0:00:21.1]} 30...
axb5 {[%clk 0:00:43.1]} 31. Rxb5 {[%clk 0:00:22]} 31... Kg7 {[%clk 0:00:32.7]}
32. Bxd5 {[%clk 0:00:21.1]} 32... Na7 {[%clk 0:00:28.5]} 33. Rxb7 {[%clk
0:00:18.2]} 1-0

[Event "Late-Titled-Tuesday-Blitz-May-07-2024"]
[Site "Chess.com"]
[Date "2024.05.07"]
[Round "5"]
[White "GothamChess"]
[Black "Zhigalko_Sergei"]
[Result "1-0"]
[WhiteElo "2715"]
[BlackElo "2876"]
[TimeControl "180+1"]
[EndTime "14:55:21 PDT"]
[Termination "GothamChess won on time"]

1. e4 {[%clk 0:02:59.4]} 1... c5 {[%clk 0:03:00.2]} 2. a3 {[%clk 0:02:57.6]}
2... Nf6 {[%clk 0:02:42.3]} 3. e5 {[%clk 0:02:56.6]} 3... Nd5 {[%clk 0:02:42.7]}
4. Bc4 {[%clk 0:02:52.4]} 4... e6 {[%clk 0:02:37.7]} 5. Nf3 {[%clk 0:02:50.3]}
5... Nc6 {[%clk 0:02:37.6]} 6. O-O {[%clk 0:02:50.1]} 6... Nde7 {[%clk
0:02:22.3]} 7. c3 {[%clk 0:02:37.9]} 7... d5 {[%clk 0:02:13.5]} 8. exd6 {[%clk
0:02:37.5]} 8... Qxd6 {[%clk 0:02:06.3]} 9. d4 {[%clk 0:02:36.7]} 9... cxd4
{[%clk 0:01:51.7]} 10. cxd4 {[%clk 0:02:36.6]} 10... Nd5 {[%clk 0:01:52.1]} 11.
Nbd2 {[%clk 0:02:13.1]} 11... Be7 {[%clk 0:01:50.1]} 12. Ne4 {[%clk 0:02:11.8]}
12... Qd8 {[%clk 0:01:50]} 13. Re1 {[%clk 0:02:11.2]} 13... O-O {[%clk 0:01:50]}
14. Qd3 {[%clk 0:02:04.1]} 14... h6 {[%clk 0:01:09]} 15. Ne5 {[%clk 0:01:47.5]}
15... Nxe5 {[%clk 0:00:59.2]} 16. dxe5 {[%clk 0:01:47.7]} 16... Nb6 {[%clk
0:00:59.3]} 17. Qg3 {[%clk 0:01:43.4]} 17... Nxc4 {[%clk 0:00:26.4]} 18. Bxh6
{[%clk 0:01:40]} 18... g6 {[%clk 0:00:26.9]} 19. Rad1 {[%clk 0:01:24.9]} 19...
Qa5 {[%clk 0:00:25.3]} 20. Bg5 {[%clk 0:01:12.6]} 20... Qxe5 {[%clk 0:00:04.8]}
21. Bxe7 {[%clk 0:00:59]} 21... Qxg3 {[%clk 0:00:04.8]} 22. hxg3 {[%clk
0:00:59.7]} 22... f5 {[%clk 0:00:01.7]} 23. Bxf8 {[%clk 0:00:56.4]} 23... Kxf8
{[%clk 0:00:02.6]} 24. Ng5 {[%clk 0:00:33.4]} 24... Ke7 {[%clk 0:00:02.6]} 25.
Rc1 {[%clk 0:00:33.7]} 25... Nxb2 {[%clk 0:00:02.1]} 26. Rc7+ {[%clk 0:00:33.2]}
26... Kd6 {[%clk 0:00:02.1]} 27. Rc2 {[%clk 0:00:26.5]} 27... Na4 {[%clk
0:00:01.4]} 28. Rd1+ {[%clk 0:00:26.1]} 28... Ke7 {[%clk 0:00:01.7]} 29. Rc7+
{[%clk 0:00:25.7]} 29... Kf6 {[%clk 0:00:02]} 30. f4 {[%clk 0:00:26.1]} 30...
Bd7 {[%clk 0:00:00.9]} 31. Rdxd7 {[%clk 0:00:25.2]} 1-0

[Event "Late-Titled-Tuesday-Blitz-May-07-2024"]
[Site "Chess.com"]
[Date "2024.05.07"]
[Round "5"]
[White "wild3000"]
[Black "Stanbad1"]
[Result "0-1"]
[WhiteElo "2483"]
[BlackElo "2626"]
[TimeControl "180+1"]
[EndTime "14:55:23 PDT"]
[Termination "Stanbad1 won by checkmate"]

1. e4 {[%clk 0:02:59.2]} 1... e6 {[%clk 0:03:00.3]} 2. Nf3 {[%clk 0:02:58.9]}
2... d5 {[%clk 0:03:00.1]} 3. e5 {[%clk 0:02:59.5]} 3... Bd7 {[%clk 0:02:59.8]}
4. a3 {[%clk 0:02:58.6]} 4... c5 {[%clk 0:02:59.6]} 5. b4 {[%clk 0:02:58.4]}
5... cxb4 {[%clk 0:02:59.6]} 6. d4 {[%clk 0:02:58.2]} 6... Nc6 {[%clk
0:02:57.6]} 7. axb4 {[%clk 0:02:56.7]} 7... Nxb4 {[%clk 0:02:55]} 8. c3 {[%clk
0:02:56.6]} 8... Nc6 {[%clk 0:02:55.2]} 9. Bd3 {[%clk 0:02:56.1]} 9... Nge7
{[%clk 0:02:51.7]} 10. Na3 {[%clk 0:02:47.2]} 10... Nf5 {[%clk 0:02:51.7]} 11.
h4 {[%clk 0:02:37.8]} 11... Be7 {[%clk 0:02:50.7]} 12. h5 {[%clk 0:02:35.9]}
12... a6 {[%clk 0:02:49.8]} 13. g4 {[%clk 0:02:20.4]} 13... Nh4 {[%clk
0:02:44.2]} 14. Nxh4 {[%clk 0:02:15]} 14... Bxh4 {[%clk 0:02:45.1]} 15. Kf1
{[%clk 0:02:15.2]} 15... h6 {[%clk 0:02:44]} 16. Be3 {[%clk 0:02:11]} 16... Bg5
{[%clk 0:02:43.3]} 17. f4 {[%clk 0:02:11]} 17... Be7 {[%clk 0:02:43.3]} 18. Kg2
{[%clk 0:02:04.6]} 18... b5 {[%clk 0:02:42.3]} 19. Nc2 {[%clk 0:01:53.9]} 19...
O-O {[%clk 0:02:38.1]} 20. g5 {[%clk 0:01:47.5]} 20... hxg5 {[%clk 0:02:35.8]}
21. h6 {[%clk 0:01:47.4]} 21... g6 {[%clk 0:02:34.5]} 22. h7+ {[%clk 0:01:38.7]}
22... Kh8 {[%clk 0:02:34.1]} 23. Qg4 {[%clk 0:01:19.5]} 23... f5 {[%clk
0:02:31.2]} 24. exf6 {[%clk 0:01:18.3]} 24... Bxf6 {[%clk 0:02:29.4]} 25. Qg3
{[%clk 0:00:59.9]} 25... Bg7 {[%clk 0:02:23]} 26. fxg5 {[%clk 0:00:47.1]} 26...
e5 {[%clk 0:02:21.4]} 27. Bxg6 {[%clk 0:00:45.9]} 27... e4 {[%clk 0:02:19.5]}
28. Raf1 {[%clk 0:00:41.5]} 28... Qe7 {[%clk 0:02:17.4]} 29. Bf4 {[%clk
0:00:33.8]} 29... Qe6 {[%clk 0:02:09.5]} 30. Rh6 {[%clk 0:00:31]} 30... Bxh6
{[%clk 0:02:04.3]} 31. gxh6 {[%clk 0:00:31.9]} 31... Rf6 {[%clk 0:02:04]} 32.
Bf5 {[%clk 0:00:21.8]} 32... Qf7 {[%clk 0:01:44.4]} 33. Qg7+ {[%clk 0:00:19.6]}
33... Qxg7+ {[%clk 0:01:42]} 34. hxg7+ {[%clk 0:00:20.5]} 34... Kxg7 {[%clk
0:01:42.4]} 35. Bxd7 {[%clk 0:00:20.4]} 35... Kxh7 {[%clk 0:01:42.4]} 36. Ne3
{[%clk 0:00:15.9]} 36... Ne7 {[%clk 0:01:41]} 37. Rh1+ {[%clk 0:00:12.9]} 37...
Kg8 {[%clk 0:01:39.4]} 38. Be5 {[%clk 0:00:12.9]} 38... Rg6+ {[%clk 0:01:39.5]}
39. Kf2 {[%clk 0:00:13.2]} 39... Rf8+ {[%clk 0:01:38.2]} 40. Ke2 {[%clk
0:00:12.8]} 40... Rf3 {[%clk 0:01:38.3]} 41. Be8 {[%clk 0:00:10.9]} 41... Kf8
{[%clk 0:01:30.2]} 42. Rh8+ {[%clk 0:00:10.3]} 42... Rg8 {[%clk 0:01:29.6]} 43.
Rxg8+ {[%clk 0:00:10.2]} 43... Nxg8 {[%clk 0:01:26.6]} 44. Bh5 {[%clk
0:00:09.9]} 44... Rh3 {[%clk 0:01:24.3]} 45. Bg4 {[%clk 0:00:10]} 45... Rh4
{[%clk 0:01:24.4]} 46. Be6 {[%clk 0:00:09.2]} 46... Ne7 {[%clk 0:01:24.5]} 47.
Bxd5 {[%clk 0:00:08.2]} 47... Nxd5 {[%clk 0:01:23.9]} 48. Nxd5 {[%clk
0:00:08.2]} 48... a5 {[%clk 0:01:24.6]} 49. Bd6+ {[%clk 0:00:07.9]} 49... Ke8
{[%clk 0:01:24.1]} 50. Ke3 {[%clk 0:00:07.3]} 50... Kd7 {[%clk 0:01:23.2]} 51.
Bc5 {[%clk 0:00:06.3]} 51... Ke6 {[%clk 0:01:20.9]} 52. Nf4+ {[%clk 0:00:06.1]}
52... Kf5 {[%clk 0:01:21.1]} 53. d5 {[%clk 0:00:04.9]} 53... Rxf4 {[%clk
0:01:20.6]} 54. d6 {[%clk 0:00:04.5]} 54... Rf3+ {[%clk 0:01:20.9]} 55. Kd4
{[%clk 0:00:04.8]} 55... Rd3# {[%clk 0:01:20.8]} 0-1

[Event "Late-Titled-Tuesday-Blitz-May-07-2024"]
[Site "Chess.com"]
[Date "2024.05.07"]
[Round "5"]
[White "sammartin99"]
[Black "Nechitaylo_Nikita"]
[Result "1-0"]
[WhiteElo "2239"]
[BlackElo "2333"]
[TimeControl "180+1"]
[EndTime "14:55:23 PDT"]
[Termination "sammartin99 won by checkmate"]

1. d4 {[%clk 0:02:54.5]} 1... Nf6 {[%clk 0:02:59.9]} 2. c4 {[%clk 0:02:53.2]}
2... e6 {[%clk 0:03:00.4]} 3. Nc3 {[%clk 0:02:51.8]} 3... Bb4 {[%clk 0:03:00.7]}
4. a3 {[%clk 0:02:51.4]} 4... Bxc3+ {[%clk 0:03:00.1]} 5. bxc3 {[%clk
0:02:51.7]} 5... O-O {[%clk 0:03:01]} 6. f3 {[%clk 0:02:50.4]} 6... b6 {[%clk
0:03:01.7]} 7. e4 {[%clk 0:02:50.1]} 7... d6 {[%clk 0:03:01.1]} 8. Bd3 {[%clk
0:02:48.4]} 8... Ba6 {[%clk 0:03:01.4]} 9. Qe2 {[%clk 0:02:39.1]} 9... Nc6
{[%clk 0:02:56.3]} 10. Bg5 {[%clk 0:02:37.4]} 10... e5 {[%clk 0:02:56.4]} 11. d5
{[%clk 0:02:24.8]} 11... Na5 {[%clk 0:02:56.1]} 12. Nh3 {[%clk 0:02:20.3]} 12...
h6 {[%clk 0:02:46.8]} 13. Bh4 {[%clk 0:02:10.9]} 13... g5 {[%clk 0:02:29.3]} 14.
Bg3 {[%clk 0:01:51.9]} 14... Nd7 {[%clk 0:02:19.3]} 15. Nf2 {[%clk 0:01:45.7]}
15... Nc5 {[%clk 0:02:14.8]} 16. h4 {[%clk 0:01:45.8]} 16... Nxd3+ {[%clk
0:01:46.4]} 17. Qxd3 {[%clk 0:01:46.7]} 17... Bxc4 {[%clk 0:01:46.1]} 18. Qc2
{[%clk 0:01:33.1]} 18... Kg7 {[%clk 0:00:55.2]} 19. Ng4 {[%clk 0:01:23.5]} 19...
Bb3 {[%clk 0:00:20.5]} 20. Qb2 {[%clk 0:01:15.2]} 20... Bc4 {[%clk 0:00:18.4]}
21. Ne3 {[%clk 0:01:13.2]} 21... Ba6 {[%clk 0:00:11.4]} 22. Nf5+ {[%clk
0:01:05.5]} 22... Kg6 {[%clk 0:00:03]} 23. hxg5 {[%clk 0:01:02.5]} 23... h5
{[%clk 0:00:03.7]} 24. f4 {[%clk 0:00:49.6]} 24... Nc4 {[%clk 0:00:03]} 25. Qf2
{[%clk 0:00:48.5]} 25... exf4 {[%clk 0:00:02.6]} 26. Bxf4 {[%clk 0:00:47]} 26...
Ne5 {[%clk 0:00:02.6]} 27. Bxe5 {[%clk 0:00:25.6]} 27... dxe5 {[%clk 0:00:03.5]}
28. Rxh5 {[%clk 0:00:19.5]} 28... Kxh5 {[%clk 0:00:02.5]} 29. Qh4+ {[%clk
0:00:19.3]} 29... Kg6 {[%clk 0:00:01.7]} 30. Qh6# {[%clk 0:00:19.6]} 1-0